Workbook

Sheet 足球场
A1: 劳务清包单项人工费
A2: 工程名称：茶城建设2023年皇茶大道附属设施新建项目
A3: 序号 | B3: 名称 | C3: 单位 | D3: 暂估工程量 | E3: 单价（元，含税） （保留整数） | F3: 工作内容 | G3: 备注
A4: 一 | B4: 劳务清包报价
A5: 1 | B5: 场地平整 | C5: m2 | D5: 1.00 | E5: 2 | F5: 机械碾压、夯实、平整
A6: 2 | B6: 挖一般土方 | C6: m3 | D6: 1.00 | E6: 8 | F6: 机械挖土方：包括挖土、挖死角、修理边坡、人工配合清底、积水抽排等全部内容
A7: 3 | B7: 挖一般石方 | C7: m3 | D7: 1.00 | E7: 16 | F7: 机械挖石方：包括破碎、挖石、挖死角、修理边坡、人工配合清底、积水抽排等全部内容
A8: 4 | B8: 挖沟槽、基坑土方 | C8: m3 | D8: 1.00 | E8: 13 | F8: 机械挖沟槽土方：包括挖土、挖死角、修理边坡、人工配合清底、积水抽排等全部内容
A9: 5 | B9: 挖沟槽、基坑石方 | C9: m3 | D9: 1.00 | E9: 26 | F9: 机械挖沟槽石方：包括破碎、挖石、挖死角、修理边坡、人工配合清底、积水抽排等全部内容
A10: 6 | B10: 土石方回填 | C10: m3 | D10: 1.00 | E10: 7 | F10: 包含土石方内转、回填、压实
A11: 7 | B11: 3:7灰土层 | C11: m3 | D11: 1.00 | E11: 36 | F11: 灰土拌合、场内转运、回填压实
A12: 8 | B12: 余方弃置 | C12: m3 | D12: 1.00 | E12: 31 | F12: 包含土石方上、下车，汽车运输，弃土倒场费等，运距综合考虑。
A13: 9 | B13: 零星砌筑（包括砖胎模、台阶等） | C13: m3 | D13: 1.00 | E13: 351 | F13: 1.砂浆制作、运输 2.砌砖 3.刮缝 4.砖砌筑 5.材料运输 | H13: =4261+180-3577 -> 864 | I13: 24004.52 | J13: 58905.65 | K13: =H13/I13*J13 -> 2120.204095
A14: 10 | B14: 零星抹灰（包括砖胎模抹灰、防潮层等） | C14: m2 | D14: 1.00 | E14: 19 | F14: 1.基层清理 2.砂浆制作、运输 3.底层抹灰 4.抹面层
A15: 11 | B15: 人工检底 | C15: m2 | D15: 1.00 | E15: 11 | F15: 1.排地表水 2.土方开挖 3.运输
A16: 12 | B16: 旋挖桩 | C16: m | D16: 1.00 | E16: 437 | F16: 1.钻孔、护筒安装2.清理桩孔3.钢筋笼安装4.混凝土制作、运输、灌注、振捣、养护.
A17: 13 | B17: 破桩头 | C17: 个 | D17: 1.00 | E17: 602 | F17: 人工破碎桩头混凝土、清理建渣
A18: 14 | B18: 正负零下基础钢筋制安 | C18: t | D18: 1.00 | E18: 1413 | F18: 1.钢筋制作、运输 2.钢筋安装 3.焊接（绑扎） | H18: =(187+373.156)*2+112.629+24.395+32.64+29.52 -> 1319.496 | I18: =H18*1.06 -> 1398.66576
A19: 15 | B19: 预埋铁件 | C19: t | D19: 1.00 | E19: 2683 | F19: 预埋件制作、安装
A20: 16 | B20: 正负零下基础砼浇筑 | C20: m3 | D20: 1.00 | E20: 57 | F20: 1.正负零下结构混凝土混凝土制作、运输、浇筑、振捣、养护 | H20: =7044.4*2+1587.27+370.29+376.52+560.03 -> 16982.91
A21: 17 | B21: 正负零下模板制安 | C21: m2 | D21: 1.00 | E21: 56 | F21: 1.模板及支架（撑）制作、安装、拆除、堆放、运输及清理模内杂物、刷隔离剂等2.包含：除木方、模板、止水丝杆外的一切辅材。 | H21: 8457.31 | I21: 2551.89 | J21: 823.85 | K21: 688.38 | L21: 711.8 | M21: =H21*2+I21+J21+K21+L21 -> 21690.54 | N21: =M21/D112 -> 21690.54
A22: 18 | B22: 正负零上模板制安 | C22: m2 | D22: 1.00 | E22: 54 | F22: 1.模板及支架（撑）制作、安装、拆除、堆放、运输及清理模内杂物、刷隔离剂等 2.包含：除木方、模板、止水丝杆外的一切辅材。 | H22: =52013.31+6215.3 -> 58228.61 | I22: =16714.08+2269.87 -> 18983.95 | J22: 1874.81 | K22: 2213.42 | L22: 2289.68 | M22: =H22*2+I22+J22+K22+L22 -> 141819.08 | N22: =M22/D59 -> 141819.08
A23: 19 | B23: 正负零上楼层钢筋制安 | C23: m2 | D23: 1.00 | E23: 71 | F23: 1.钢筋制作、运输 2.钢筋安装 3.焊接（绑扎）
A24: 20 | B24: 正负零上楼层混凝土浇筑 | C24: m2 | D24: 1.00 | E24: 25 | F24: 1.正负零上结构混凝土混凝土制作、运输、浇筑、振捣、养护
A25: 21 | B25: 砖砌体（包括二装砼浇筑） | C25: m3 | D25: 1.00 | E25: 347 | F25: 1.砂浆制作、运输 2.砌砖 3.刮缝 4.砖砌筑 5.材料运输.6二装砼浇筑单价同砌体单价
A26: 22 | B26: 脚手架搭设（标化） | C26: m2 | D26: 1.00 | E26: 35 | F26: 1．场内、场外材料搬运 2．搭、拆脚手架、斜道、上料平台。 3．安全网的铺设。 4.选择附墙点与主体连接。 5.测试电动装置、安全锁等。 6．拆除脚手架后材料的堆放。
A27: 23 | B27: 垫层砼浇筑（包括脚手架垫层） | C27: m2 | D27: 1.00 | E27: 14 | F27: 1.混凝土制作、运输、浇筑、振捣、养护。 | H27: =D24*0.05 -> 0.05 | P27: =99.6+29.6 -> 129.2 | Q27: =P27*2*2 -> 516.8
A28: 24 | B28: 室内水泥砂浆地坪 | C28: m2 | D28: 1.00 | E28: 16 | F28: 1.基层清理 2.抹找平层 3.抹面层 4.材料运输。 | O28: =1.3+2.9+5.2+3.4 -> 12.8 | P28: =O28*8 -> 102.4
A29: 25 | B29: 细石砼地面（或保护层） | C29: m2 | D29: 1.00 | E29: 17 | F29: 1.基层处理 2.混凝土制作、运输、铺筑、养护。
A30: 26 | B30: 水泥砂浆保护层（找坡层） | C30: m2 | D30: 1.00 | E30: 12 | F30: 1.基层清理 2.砂浆制作、运输 3.底层抹灰 4.抹面层。
A31: 27 | B31: 内墙抹灰 | C31: m2 | D31: 1.00 | E31: 18 | F31: 1.基层清理 2.砂浆制作、运输 3.底层抹灰 4.抹面层。 | O31: =276*1.5*4.5 -> 1863 | P31: =259*2*5.3 -> 2745.4 | Q31: =259*2*4.4*5 -> 11396 | R31: =259*2*6.2 -> 3211.6 | S31: =150*2*4.6 -> 1380
A32: 28 | B32: 外墙抹灰 | C32: m2 | D32: 1.00 | E32: 32 | F32: 1.基层清理 2.砂浆制作、运输 3.底层抹灰 4.抹面层。 | O32: =259*38.9 -> 10075.1
A33: 29 | B33: 外墙保温板 | C33: m2 | D33: 1.00 | E33: 22 | F33: 1.基层处理 2.保温板粘贴
A34: 30 | B34: 墙面、天棚涂料 | C34: m2 | D34: 1.00 | E34: 16 | F34: 1.基层处理 2.刷（喷）涂料两遍
A35: 31 | B35: 墙面、天棚刮腻子 | C35: m2 | D35: 1.00 | E35: 15 | F35: 1.基层处理 2.满刮腻子两遍
A36: 32 | B36: 顶棚抹灰 | C36: m2 | D36: 1.00 | E36: 18 | F36: 1.基层清理 2.砂浆制作、运输 3.底层抹灰 4.抹面层。 | O36: =22276*0.9 -> 20048.4 | P36: =O36*1.2 -> 24058.08
A37: 33 | B37: 内墙面砖（墙砖） | C37: m2 | D37: 1.00 | E37: 42 | F37: 1.基层清理 2.砂浆制作、运输 3.粘结层铺贴 4.面层安装 5.嵌缝。 | O37: =12.6*2+9.1*2+5.6+9.6+16+15+15*2+7.7+9.1+11.8 -> 148.2 | P37: =O37*5.3 -> 785.46 | Q37: =12.6*2+9.1*2+5.6+9.6+15*2+7.7+9.1+11.8 -> 117.2 | R37: =Q37*4.4*5 -> 2578.4 | S37: =Q37*6.2 -> 726.64 | T37: =S37+R37+P37 -> 4090.5
A38: 34 | B38: 成品隔断 | C38: m2 | D38: 1.00 | E38: 20 | F38: 预埋件安装、隔断安装
A39: 35 | B39: 棕色铝方通安装 | C39: m | D39: 1.00 | E39: 23 | F39: 铝方通切割、预埋、安装
A40: 36 | B40: GRC装饰线条安装 | C40: m | D40: 1.00 | E40: 41 | F40: 基层处理、GRC线条安装
A41: 37 | B41: 窗防护栏杆、坡道栏杆 | C41: m | D41: 1.00 | E41: 72 | F41: 预埋件安装、护栏打磨、切割、安装
A42: 38 | B42: 屋面及顶板（含找平层、找坡层、刚性层、保护层） | C42: m2 | D42: 1.00 | E42: 56 | F42: 1.水泥砂浆找平层，保护层，透气管安装，找坡层及刚性层（屋面保温板铺设）
A43: 39 | B43: 室内防水保护层、找平层 | C43: m2 | D43: 1.00 | E43: 13 | F43: 1.基层清理 2.抹找平层 3.抹面层 4.材料运输 | O43: =9.58*2+5*2+1.7+5.6+15+12.5+3.26+5.15+12*2+8.5 -> 104.87 | P43: =9.58*2+5*2+1.7+5.6+3.26+5.15+12*2+8.5 -> 77.37 | Q43: =P43*6 -> 464.22 | R43: =O43+Q43 -> 569.09
A44: 40 | B44: 屋面及天沟隔离层 | C44: m2 | D44: 1.00 | E44: 8 | F44: 1.基层处理 2.刷底油 3.铺油土工布
A45: 41 | B45: 屋面分割缝 | C45: m | D45: 1.00 | E45: 10 | F45: 1.嵌缝木条2.嵌缝建筑油膏 | O45: =26*13*2+99.6*5 -> 1174
A46: 42 | B46: 屋面变形缝 | C46: m | D46: 1.00 | E46: 15 | F46: 1.嵌缝木条2.嵌缝建筑油膏 | O46: =8.3*2+4.8*2 -> 26.2
A47: 43 | B47: 抹灰钢丝网、玻纤网 | C47: m2 | D47: 1.00 | E47: 9 | F47: 1.铺贴钢丝网、铆固等全部操作过程。
A48: 44 | B48: 铝合金方板天棚 | C48: m2 | D48: 1.00 | E48: 48 | F48: 1.基层清理、吊杆安装 2.龙骨安装 3.基层板铺贴 4.面层铺贴 5.嵌缝 6.刷防护材料7.材料另计 8.材料二次转运
A49: 45 | B49: 防滑地砖300*300 | C49: m2 | D49: 1.00 | E49: 46 | F49: 1.基层清理 2.砂浆制作、运输 3.粘结层铺贴 4.面层安装 5.嵌缝
A50: 46 | B50: 仿石地砖 | C50: m2 | D50: 1.00 | E50: 47 | F50: 1.基层清理 2.砂浆制作、运输 3.粘结层铺贴 4.面层安装 5.嵌缝 | H50: =633/24004.52*56776 -> 1497.19 | I50: 14880 | O50: =22276-580-100+825 -> 22421 | P50: =25*11*3 -> 825
A51: 47 | B51: 地砖踢脚线 | C51: m2 | D51: 1.00 | E51: 62 | F51: 1.踢脚线高度 :100mm2.界面剂一道，9厚1:2水泥砂浆（内掺建筑胶）3.5-10厚地砖踢脚 | O51: =276*1.5*0.1 -> 41.4 | P51: =259*2*0.1 -> 51.8 | Q51: =259*2*0.1*5 -> 259 | R51: =259*2*0.1 -> 51.8 | S51: =150*2*0.1 -> 30
A52: 48 | B52: 水泥砂浆踢脚线 | C52: m2 | D52: 1.00 | E52: 29 | F52: 1.做法：05j909图集TJ4 踢2D
A53: 49 | B53: 银镜安装 | C53: 套 | D53: 1.00 | E53: 110 | F53: 基层处理、银镜安装
A54: 50 | B54: 固定不锈钢把手 | C54: 套 | D54: 1.00 | E54: 117 | F54: 把手制作、安装
A55: 51 | B55: 洗漱台安装 | C55: 套 | D55: 1.00 | E55: 243 | F55: 洗漱台安装、附件安装、打胶
A56: 52 | B56: 蹲便器安装 | C56: 套 | D56: 1.00 | E56: 103 | F56: 蹲便器安装、附件安装、打胶
A57: 53 | B57: 座便器安装 | C57: 套 | D57: 1.00 | E57: 126 | F57: 座便器安装、附件安装、打胶
A58: 54 | B58: 小便器安装 | C58: 套 | D58: 1.00 | E58: 106 | F58: 小镖旗安装、附件安装、打胶
A59: 55 | B59: 室内水电安装 | C59: m2 | D59: 1.00 | E59: 62 | F59: 强电、给排水、现场临水临电按省标施工(电表水表后开始施工)，弱电管线预埋。
A60: 56 | B60: 排水沟（综合） | C60: m | D60: 1.00 | E60: 50 | F60: 模板、抹灰、沟底、砖砌体等
A61: 57 | B61: 雨水箅子（沟盖板等） | C61: m | D61: 1.00 | E61: 33 | F61: 1.安装截水沟铸铁箅子 | H61: =58.97 -> 58.97 | I61: =11.41*11 -> 125.51 | J61: =8.29*6 -> 49.74 | K61: =234.22*0.4 -> 93.688
A62: 58 | B62: 植钢筋、螺杆 直径(mm) φ6.5-φ8 | C62: 根 | D62: 1.00 | E62: 3 | F62: 定位、钻孔、清孔、钢筋螺杆除锈、打磨、配胶灌注、钢筋及螺杆埋植、保护、清理工作面等。 | H62: 58.97 | I62: =H62*0.7 -> 41.279
A63: 59 | B63: 植钢筋、螺杆 直径(mm) 10 | C63: 根 | D63: 1.00 | E63: 3 | H63: =0.52*D42 -> 0.52
A64: 60 | B64: 植钢筋、螺杆 直径(mm) 12-14 | C64: 根 | D64: 1.00 | E64: 5 | H64: =0.3*D26 -> 0.3
A65: 61 | B65: 机械连接φ20-φ32 | C65: 个 | D65: 1.00 | E65: 15 | F65: 1.钢筋套丝2.套筒连接
A66: 62 | B66: 散水 | C66: m | D66: 1.00 | E66: 56 | F66: 1.地基夯实 2.铺设垫层 3.模板及支撑制作、安装、拆除、堆放、运输及清理模内杂物、刷隔离剂等 4.混凝土制作、运输、浇筑、振捣、养护 5.变形缝填塞 | H66: =114.65*2+58.97*2 -> 347.24 | I66: =42.35*2+106.3 -> 191 | J66: =H66*2+I66 -> 885.48
A67: 63 | B67: 坡道 | C67: m2 | D67: 1.00 | E67: 54 | F67: 1.地基夯实 2.铺设垫层 3.模板及支撑制作、安装、拆除、堆放、运输及清理模内杂物、刷隔离剂等 4.混凝土制作、运输、浇筑、振捣、养护 5.变形缝填塞
A68: 64 | B68: 室外台阶 | C68: m2 | D68: 1.00 | E68: 130 | F68: 1.地基夯实 2.铺设垫层 3.模板及支撑制作、安装、拆除、堆放、运输及清理模内杂物、刷隔离剂等 4.混凝土制作、运输、浇筑、振捣、养护
A69: 65 | B69: 台阶贴花岗石 | C69: m2 | D69: 1.00 | E69: 80 | F69: 1.基层清理 2.砂浆制作、运输 3.粘结层铺贴 4.面层安装 5.嵌缝
A70: 66 | B70: 楼梯、台阶贴砖 | C70: m2 | D70: 1.00 | E70: 80 | F70: 1.基层清理 2.砂浆制作、运输 3.粘结层铺贴 4.面层安装 5.嵌缝
A71: 67 | B71: 花池贴砖 | C71: m2 | D71: 1.00 | E71: 62 | F71: 1.基层清理 2.砂浆制作、运输 3.粘结层铺贴 4.面层安装 5.嵌缝
A72: 68 | B72: 花岗石道牙 | C72: m | D72: 1.00 | E72: 44 | F72: 1.基层清理 2.砂浆制作、运输 3.粘结层铺贴 4.道牙安装
A73: 69 | B73: 总平路平石、路缘石 | C73: m | D73: 1.00 | E73: 22 | F73: 1.开槽 ；2.基础、垫层铺筑 ；3.侧（平、缘）石安砌
A74: 70 | B74: 总平石材铺装（花岗石） | C74: m2 | D74: 1.00 | E74: 58 | F74: 1.基层清理 ；2.抹找平层 ；3.面层铺设、磨边 ；4.嵌缝 ；5.刷防护材料 ；6.酸洗、打蜡 ；7.材料运输
A75: 71 | B75: 混凝土垫层、地坪浇筑 | C75: m2 | D75: 1.00 | E75: 16 | F75: 人工、机械配合浇筑、振捣、收面、养护等，不含混凝土材料
A76: 72 | B76: 级配碎石垫层 | C76: m2 | D76: 1.00 | E76: 10 | F76: 人工、机械配合摊铺、压实、成型，不含碎石材料
A77: 73 | B77: 砂砾石垫层 | C77: m2 | D77: 1.00 | E77: 13 | F77: 人工、机械配合摊铺、压实、成型，不含砂砾石材料
A78: 74 | B78: 绿色混凝土植草砖粘贴 | C78: m2 | D78: 1.00 | E78: 48 | F78: 砂浆制作、材料转运、植草砖粘贴
A79: 75 | B79: 浆砌毛石挡土墙 | C79: m3 | D79: 1.00 | E79: 293 | F79: 砂浆制作、材料转运、人工砌筑、勾缝
A80: 76 | B80: C25透水混凝土120厚 | C80: m2 | D80: 1.00 | E80: 60 | F80: 现场拌和、浇筑、切缝、养护
A81: 77 | B81: 足球场围网 | C81: m2 | D81: 1.00 | E81: 44 | F81: 预埋件安装、围网安装
A82: 78 | B82: 足球门 | C82: 个 | D82: 1.00 | E82: 510 | F82: 预埋件安装、球门安装
A83: 79 | B83: 总平雨水井、污水井（砖砌井、砼井） | C83: 座 | D83: 1.00 | E83: 350 | F83: 1.地基夯实 2.铺设垫层 3.模板及支撑制作、安装、拆除、堆放、运输及清理模内杂物、刷隔离剂等 4.混凝土制作、运输、浇筑、振捣、养护 5.砖砌体砌筑、抹灰。
A84: 80 | B84: 总平雨水井、污水井（成品井） | C84: 座 | D84: 1.00 | E84: 125 | F84: 1.垫层、基础材质及厚度：综合考虑；2.检查井材质、规格：一次性注塑成型加筋塑料检查井（材质HDPE),防护型安装,详08SS523，符合《建筑小区排水用塑料检查井》CJ/T233-2006标准要求；3.井筒、井盖、井圈材质及规格：井盖，井圈综合考虑；4.井筒防坠网，做法详设计图纸；5.其他：满足设计及规范要求
A85: 81 | B85: 总平排水管道安装（聚乙烯PE双壁波纹管 DN400） | C85: m | D85: 1.00 | E85: 32 | F85: 管道调运、铺设、接口处理
A86: 82 | B86: 总平排水管道安装（聚乙烯PE双壁波纹管 DN300） | C86: m | D86: 1.00 | E86: 24 | F86: 管道调运、铺设、接口处理
A87: 83 | B87: 总平排水管道安装（聚乙烯PE双壁波纹管 DN200） | C87: m | D87: 1.00 | E87: 19 | F87: 管道调运、铺设、接口处理
A88: 84 | B88: 总平穿孔排水盲管 φ150PVC | C88: m | D88: 1.00 | E88: 14 | F88: 管道调运、铺设、接口处理
A89: 85 | B89: 总平给水管道安装（钢丝网骨架塑料（聚乙烯）复合管 DN100） | C89: m | D89: 1.00 | E89: 17 | F89: 1.管道安装 ；2.管件安装 ；3.塑料卡固定 ；4. 压力试验 ；5. 吹扫、冲洗
A90: 86 | B90: 总平给水管道安装（钢丝网骨架塑料（聚乙烯）复合管 DN50） | C90: m | D90: 1.00 | E90: 13 | F90: 1.管道安装 ；2.管件安装 ；3.塑料卡固定 ；4. 压力试验 ；5. 吹扫、冲洗
A91: 87 | B91: 中粗砂包管 | C91: m3 | D91: 1.00 | E91: 31 | F91: 场内转运、回填、夯实，不含中粗砂
A92: 88 | B92: 混凝土基础、包管 | C92: m3 | D92: 1.00 | E92: 63 | F92: 含支模、浇筑混凝土，不含混凝土
A93: 89 | B93: 总平强弱电线管（镀锌钢管） | C93: m | D93: 1.00 | E93: 14 | F93: 1.预留沟槽 ；2.钢索架设（拉紧装置安装） ；3.电线管路敷设 ；4.接地
A94: 90 | B94: 总平强弱电线管（PVC管） | C94: m | D94: 1.00 | E94: 5 | F94: 1.预留沟槽 ；2.钢索架设（拉紧装置安装） ；3.电线管路敷设 ；4.接地
A95: 91 | B95: 总平电缆敷设 | C95: m | D95: 1.00 | E95: 18 | F95: 电缆穿管敷设、接头、线卡等。
A96: 92 | B96: 总平强弱电线穿管 | C96: m | D96: 1.00 | E96: 4 | F96: 穿线、接线、调试
A97: 93 | B97: 总平三通强弱电手孔井 | C97: 座 | D97: 1.00 | E97: 517 | F97: 含垫层、基础、砌筑、抹灰、井盖安装等；不含混凝土、砂浆、砖、井盖等材料
A98: 94 | B98: 总平四通强弱电手孔井 | C98: 座 | D98: 1.00 | E98: 677 | F98: 含垫层、基础、砌筑、抹灰、井盖安装等；不含混凝土、砂浆、砖、井盖等材料
A99: 95 | B99: 总平高杆灯 立柱高14m | C99: 套 | D99: 1.00 | E99: 1873 | F99: 挖基础、基础浇筑、预埋件安装、路灯吊装、安装、调试
A100: 96 | B100: 总平高杆灯 立柱高6m | C100: 套 | D100: 1.00 | E100: 1250 | F100: 挖基础、基础浇筑、预埋件安装、路灯吊装、安装、调试
A101: 97 | B101: 总平监控 立柱高3.5m | C101: 套 | D101: 1.00 | E101: 477 | F101: 挖基础、基础浇筑、预埋件安装、立杆吊装、监控安装条石
A102: 98 | B102: 绿化用地整理 | C102: m2 | D102: 1.00 | E102: 6 | F102: 人工松土、平整
A103: 99 | B103: 种植土回填 | C103: m3 | D103: 1.00 | E103: 12 | F103: 人工回填、平整、造型
A104: 100 | B104: 乔木栽植 | C104: 株 | D104: 1.00 | E104: 812 | F104: 乔木吊移、栽种、支撑、成活、养护
A105: 101 | B105: 灌木、球类植物栽植 | C105: 株 | D105: 1.00 | E105: 55 | F105: 植物栽种、成活、养护
A106: 102 | B106: 地被植物栽植 | C106: m2 | D106: 1.00 | E106: 16 | F106: 植物栽种、成活、养护
A107: 103 | B107: 草皮栽植 | C107: m2 | D107: 1.00 | E107: 9 | F107: 植物栽种、成活、养护
A108: 104 | B108: 吊车（25T) | C108: 台班 | D108: 1.00 | E108: 2033
A109: 105 | B109: 塔机、施工电梯机 | C109: m2 | D109: 1.00 | E109: 63 | F109: 塔机安拆、检测、租金、操作人员工资等，按建筑面积包干。
A110: 106 | B110: 木方、模板、钢矩管等周转材料费 | C110: m2 | D110: 1.00 | E110: 67 | F110: 1.木方、模板、钢矩管。2.木工配套的小型机具3.按建筑面积包干使用。
A111: 107 | B111: 钢管、扣件、工字钢、外架防护网、硬防护钢网片、架板、等防护材料。 | C111: m2 | D111: 1.00 | E111: 40 | F111: 1.钢管、扣件、工字钢的租金、运费、损耗等.2.外架防护网包括（平网、立网）、四口五临边的防护材料.3.按建筑面积包干4.按标化工地标准
A112: 108 | B112: 安全文明辅助人工费 | C112: 元 | D112: 1.00 | E112: 0.42% | F112: 施工范围内所有垃圾清理、材料堆码、材料转运、公共卫生清扫、宣传条幅的悬挂、维护、拆除。每道工序完成后的清理工作。现场需重复使用利用的材料按要求堆码。所有安全通道、临时楼梯、爬梯的搭设、拆除。以竣工结算总金额为计算基数
A113: 109 | B113: 清单项目以外零星用工(技工) | C113: 工日 | D113: 1.00 | E113: 283 | F113: 清单项目以外的用工
A114: 110 | B114: 清单项目以外零星用工(普工) | C114: 工日 | D114: 1.00 | E114: 152 | F114: 清单项目以外的用工
A115: 111 | B115: 活动板房搭设 | C115: m2 | D115: 1.00 | E115: 202 | F115: 项目部、钢筋房、木工房等
A116: 112 | B116: 管理费 | C116: 元 | D116: 1.00 | E116: 2.09% | F116: 施工期间现场管理人员工资费用，以竣工结算总金额为计算基数
A117: 113 | B117: 资料费 | C117: 总额 | D117: 1.00 | E117: 0.70% | F117: 施工过程资料、资料归档、备案
